fUSD/lending_fUSD_20241121
["ID","MTS","AMOUNT","RATE_DAILY","PERIOD"]
[342889811,1732194656290,-500.0,0.00041643,18]
[342889812,1732194656300,-500.0,0.00041643,18]
[342889813,1732194656309,-500.0,0.00041643,18]
[342889814,1732194656319,-500.0,0.00041643,18]
[342889815,1732194656329,-589.11,0.00041643,18]
[342889816,1732194656339,-591.37,0.00041643,18]
[342889817,1732194656348,-2237.19,0.00041643,18]
[342889818,1732194656359,-500.0,0.00041643,18]
[342889819,1732194656368,-1276.73,0.00041643,18]
[342889820,1732194656382,-500.0,0.00041643,18]
[342889821,1732194656391,-500.0,0.00041643,18]
[342889822,1732194656401,-500.0,0.00041643,18]
[342889823,1732194656414,-500.0,0.00041643,18]
[342889824,1732194656423,-1143.78,0.00041643,18]
[342889825,1732194656433,-500.0,0.00041643,18]
[342889826,1732194656443,-1520.33,0.00041643,18]
[342889827,1732194656453,-608.14637553,0.00041643,18]
[342889828,1732194656463,-500.0,0.00041643,18]
[342889829,1732194656473,-500.0,0.00041643,18]
[342889830,1732194656482,-500.0,0.00041643,18]
[342889831,1732194656492,-618.90924775,0.00041643,18]
[342889832,1732194656504,-933.41,0.00041643,18]
[342889833,1732194656514,-805.17,0.00041643,18]
[342889834,1732194656524,-734.92,0.00041643,18]
[342889835,1732194656533,-500.0,0.00041643,18]
[342889836,1732194656543,-723.21,0.00041643,18]
[342889837,1732194656553,-500.0,0.00041643,18]
[342889838,1732194656563,-1099.43,0.00041643,18]
[342889839,1732194656572,-500.0,0.00041643,18]
[342889840,1732194656582,-754.28,0.00041643,18]
[342889841,1732194656591,-793.43,0.00041643,18]
[342889842,1732194656601,-851.38,0.00041643,18]
[342889843,1732194656611,-500.0,0.00041643,18]
[342889844,1732194656620,-500.0,0.00041643,18]
[342889845,1732194656634,-500.0,0.00041643,18]
[342889846,1732194656643,-503.47458869,0.00041643,18]
[342889847,1732194656653,-500.0,0.00041643,18]
[342889848,1732194656662,-500.0,0.00041643,18]
[342889849,1732194656672,-1500.37,0.00041643,18]
[342889850,1732194656683,-550.53,0.00041643,18]
[342889851,1732194656693,-1132.91,0.00041643,18]
[342889852,1732194656702,-515.06,0.00041643,18]
[342889853,1732194656711,-669.38,0.00041643,18]
[342889854,1732194656721,-500.0,0.00041643,18]
[342889855,1732194656731,-565.21,0.00041643,18]
[342889856,1732194656740,-841.68,0.00041643,18]
[342889857,1732194656750,-911.11,0.00041643,18]
[342889858,1732194656761,-934.96,0.00041643,18]
[342889859,1732194656770,-500.0,0.00041643,18]
[342889860,1732194656780,-500.0,0.00041643,18]
[342889861,1732194656789,-500.0,0.00041643,18]
[342889862,1732194656799,-500.0,0.00041643,18]
[342889863,1732194656808,-500.0,0.00041643,18]
[342889864,1732194656817,-2238.4,0.00041643,18]
[342889865,1732194656827,-500.0,0.00041643,18]
[342889866,1732194656836,-500.0,0.00041643,18]
[342889867,1732194656846,-151.0,0.00041643,14]
[342889868,1732194656855,-500.0,0.00041643,18]
[342889869,1732194656865,-2156.55,0.00041643,18]
[342889870,1732194657181,-500.0,0.00041643,18]
[342889871,1732194657190,-500.0,0.00041643,18]
[342889872,1732194657200,-2089.86,0.00041643,18]
[342889873,1732194657209,-500.0,0.00041643,18]
[342889874,1732194657219,-500.0,0.00041643,18]
[342889875,1732194657227,-1818.8,0.00041643,18]
[342889876,1732194657237,-500.0,0.00041643,18]
[342889877,1732194657247,-522.66,0.00041643,18]
[342889878,1732194657256,-500.0,0.00041643,18]
[342889879,1732194657266,-642.73,0.00041643,18]
[342889880,1732194657276,-804.52,0.00041643,18]
[342889881,1732194657286,-544.07,0.00041643,18]
[342889882,1732194657296,-150.0,0.00041643,18]
[342889883,1732194657305,-613.56,0.00041643,18]
[342889884,1732194657315,-151.0,0.00041643,14]
[342889885,1732194657324,-500.0,0.00041643,18]
[342889886,1732194657334,-500.0,0.00041643,18]
[342889887,1732194657343,-500.0,0.00041643,18]
[342889888,1732194657353,-500.0,0.00041643,18]
[342889889,1732194657363,-500.0,0.00041643,18]
[342889890,1732194657372,-1023.4,0.00041643,18]
[342889891,1732194657392,-500.0,0.00041643,18]
[342889892,1732194657402,-500.0,0.00041643,18]
[342889893,1732194657412,-500.0,0.00041643,18]
[342889894,1732194657425,-500.0,0.00041643,18]
[342889895,1732194657435,-500.0,0.00041643,18]
[342889896,1732194657445,-500.0,0.00041643,18]
[342889897,1732194657456,-500.0,0.00041643,18]
[342889898,1732194657465,-500.0,0.00041643,18]
[342889899,1732194657475,-500.0,0.00041643,18]
[342889900,1732194657484,-663.19,0.00041643,18]
[342889901,1732194657493,-508.18,0.00041643,18]
[342889902,1732194657503,-500.0,0.00041643,18]
[342889903,1732194657513,-546.76,0.00041643,18]
[342889904,1732194657524,-500.0,0.00041643,18]
[342889905,1732194657533,-500.0,0.00041643,18]
[342889906,1732194657542,-1104.43,0.00041643,18]
[342889907,1732194657551,-500.0,0.00041643,18]
[342889908,1732194657560,-500.0,0.00041643,18]
[342889909,1732194657569,-824.95,0.00041643,18]
[342889910,1732194657578,-500.0,0.00041643,18]
[342889911,1732194657588,-1063.93,0.00041643,18]
[342889912,1732194657597,-730.13,0.00041643,18]
[342889913,1732194657606,-500.0,0.00041643,18]
[342889914,1732194657618,-151.0,0.00041643,14]
[342889915,1732194657631,-500.0,0.00041643,18]
[342889916,1732194657640,-500.0,0.00041643,18]
[342889917,1732194657649,-500.0,0.00041643,18]
[342889918,1732194657659,-500.0,0.00041643,18]
[342889919,1732194657668,-500.0,0.00041643,18]
[342889920,1732194657677,-519.28,0.00041643,18]
[342889921,1732194657686,-515.67,0.00041643,18]
[342889922,1732194657695,-553.44,0.00041643,18]
[342889923,1732194657704,-527.19,0.00041643,18]
[342889924,1732194657713,-2311.6,0.00041643,18]
[342889925,1732194657722,-500.0,0.00041643,18]
[342889926,1732194657731,-818.94,0.00041643,18]
[342889927,1732194657740,-637.54198275,0.00041643,18]
[342889928,1732194657749,-723.23,0.00041643,18]
[342889929,1732194657759,-500.0,0.00041643,18]
[342889930,1732194657768,-500.0,0.00041643,18]
[342889931,1732194657782,-500.0,0.00041643,18]
[342889932,1732194657791,-500.0,0.00041643,18]
[342889933,1732194657801,-1689.38,0.00041643,18]
[342889934,1732194657810,-1019.84,0.00041643,18]
[342889935,1732194657819,-547.98,0.00041643,18]
[342889936,1732194657829,-2590.26,0.00041643,18]
[342889937,1732194657839,-500.0,0.00041643,18]
[342889938,1732194657848,-944.49,0.00041643,18]
[342889939,1732194657857,-500.0,0.00041643,18]
[342889940,1732194657866,-517.93,0.00041643,18]
[342889941,1732194657879,-500.0,0.00041643,18]
[342889942,1732194657889,-500.0,0.00041643,18]
[342889943,1732194657898,-500.0,0.00041643,18]
[342889944,1732194657907,-713.1,0.00041643,18]
[342889945,1732194657917,-802.93,0.00041643,18]
[342889946,1732194657926,-652.82,0.00041643,18]
[342889947,1732194657936,-500.0,0.00041643,18]
[342889948,1732194657948,-1840.53,0.00041643,18]
[342889949,1732194657958,-500.0,0.00041643,18]
[342889950,1732194657967,-1216.8,0.00041643,18]
[342889951,1732194657976,-500.0,0.00041643,18]
[342889952,1732194657985,-615.5,0.00041643,18]
[342889953,1732194657994,-548.89,0.00041643,18]
[342889954,1732194658003,-500.0,0.00041643,18]
[342889955,1732194658013,-500.0,0.00041643,18]
[342889956,1732194658022,-1394.52,0.00041643,18]
[342889957,1732194658032,-151.0,0.00041643,14]
[342889958,1732194658042,-151.0,0.00041643,14]
[342889959,1732194658051,-955.59,0.00041643,18]
[342889960,1732194658060,-1291.74,0.00041643,18]
[342889961,1732194658070,-521.77,0.00041643,18]
[342889962,1732194658079,-631.87,0.00041643,18]
[342889963,1732194658089,-1725.65,0.00041643,18]
[342889964,1732194658099,-500.0,0.00041643,18]
[342889965,1732194658108,-151.0,0.00041643,14]
[342889966,1732194658117,-500.0,0.00041643,18]
[342889967,1732194658129,-500.0,0.00041643,18]
[342889968,1732194658138,-1126.07,0.00041643,18]
[342889969,1732194658147,-500.0,0.00041643,18]
[342889970,1732194658157,-300.49383569,0.00041643,18]
[342889971,1732194658166,-500.0,0.00041643,18]
[342889972,1732194658175,-500.0,0.00041643,18]
[342889973,1732194658184,-500.0,0.00041643,18]
[342889974,1732194658193,-609.14,0.00041643,18]
[342889975,1732194658202,-809.48,0.00041643,18]
[342889976,1732194658212,-539.84,0.00041643,18]
[342889977,1732194658221,-557.25,0.00041643,18]
[342889978,1732194658231,-815.62,0.00041643,18]
[342889979,1732194658240,-583.24,0.00041643,18]
[342889980,1732194658250,-500.0,0.00041643,18]
[342889981,1732194658260,-1214.92,0.00041643,18]
[342889982,1732194658270,-569.51,0.00041643,18]
[342889983,1732194658279,-500.0,0.00041643,18]
[342889984,1732194658288,-500.0,0.00041643,18]
[342889985,1732194658298,-500.0,0.00041643,18]
[342889986,1732194658308,-200.0,0.00041643,7]
[342889987,1732194658318,-887.95,0.00041643,18]
[342889988,1732194658328,-500.0,0.00041643,18]
[342889989,1732194658337,-500.0,0.00041643,18]
[342889990,1732194658348,-500.0,0.00041643,18]
[342889991,1732194658358,-500.0,0.00041643,18]
[342889992,1732194658367,-680.98,0.00041643,18]
[342889993,1732194658379,-1353.7,0.00041643,18]
[342889994,1732194658389,-1886.67,0.00041643,18]
[342889995,1732194658398,-500.0,0.00041643,18]
[342889996,1732194658409,-500.0,0.00041643,18]
[342889997,1732194658425,-3514.73,0.00041643,18]
[342889998,1732194658435,-500.0,0.00041643,18]
[342889999,1732194658444,-891.06,0.00041643,18]
[342890000,1732194658454,-1652.14,0.00041643,18]
[342890001,1732194658464,-500.0,0.00041643,18]
[342890002,1732194658474,-500.0,0.00041643,18]
[342890003,1732194658484,-565.95,0.00041643,18]
[342890004,1732194658495,-500.0,0.00041643,18]
[342890005,1732194658505,-151.847699,0.00041643,14]
[342890006,1732194658514,-523.5,0.00041643,18]
[342890007,1732194658524,-500.0,0.00041643,18]
[342890008,1732194658534,-500.0,0.00041643,18]
[342890009,1732194658543,-500.0,0.00041643,18]
[342890010,1732194658553,-1549.03,0.00041643,18]
[342890011,1732194658562,-677.54,0.00041643,18]
[342890012,1732194658572,-736.8,0.00041643,18]
[342890013,1732194658581,-290.97726,0.00041643,14]
[342890014,1732194658590,-500.0,0.00041643,18]
[342890015,1732194658600,-867.06,0.00041643,18]
[342890016,1732194658609,-2019.0,0.00041643,18]
[342890017,1732194658618,-822.75,0.00041643,18]
[342890018,1732194658630,-500.0,0.00041643,18]
[342890019,1732194658639,-8566.3,0.00041643,18]
[342890020,1732194658648,-500.0,0.00041643,18]
[342890021,1732194658658,-500.0,0.00041643,18]
[342890022,1732194658668,-194.015686,0.00041643,14]
[342890023,1732194658678,-575.48,0.00041643,18]
[342890024,1732194658687,-2006.86,0.00041643,18]
[342890025,1732194658697,-3156.71,0.00041643,18]
[342890026,1732194658706,-500.0,0.00041643,18]
[342890027,1732194658716,-2683.2,0.00041643,18]
[342890028,1732194658725,-767.66,0.00041643,18]
[342890029,1732194658735,-10636.58,0.00041643,18]
[342890030,1732194658744,-591.85,0.00041643,18]
[342890031,1732194658754,-500.0,0.00041643,18]
[342890032,1732194658764,-500.0,0.00041643,18]
[342890033,1732194658773,-912.59,0.00041643,18]
[342890034,1732194658782,-500.0,0.00041643,18]
[342890035,1732194658792,-500.0,0.00041643,18]
[342890036,1732194658802,-500.0,0.00041643,18]
[342890037,1732194658812,-1129.9,0.00041643,18]
[342890038,1732194658823,-879.34,0.00041643,18]
[342890039,1732194658832,-500.0,0.00041643,18]
[342890040,1732194658842,-522.24459969,0.00041643,18]
[342890041,1732194658851,-500.0,0.00041643,18]
[342890042,1732194658861,-2855.07,0.00041643,18]
[342890043,1732194658872,-500.0,0.00041643,18]
[342890044,1732194658884,-500.0,0.00041643,18]
[342890045,1732194658893,-151.0,0.00041643,14]
[342890046,1732194658903,-500.0,0.00041643,18]
[342890047,1732194658913,-500.0,0.00041643,18]
[342890048,1732194658922,-1423.11,0.00041643,18]
[342890049,1732194658932,-1424.19,0.00041643,18]
[342890050,1732194658941,-1180.37,0.00041643,18]
[342890051,1732194658950,-969.53,0.00041643,18]
[342890052,1732194658960,-1280.51,0.00041643,18]
[342890053,1732194658969,-1803.7,0.00041643,18]
[342890054,1732194658980,-500.0,0.00041643,18]
[342890055,1732194658990,-1004.29,0.00041643,18]
[342890056,1732194658999,-1004.5,0.00041643,18]
[342890057,1732194659009,-887.04,0.00041643,18]
[342890058,1732194659018,-500.0,0.00041643,18]
[342890059,1732194659027,-500.0,0.00041643,18]
[342890060,1732194659037,-2250.76,0.00041643,18]
[342890061,1732194659047,-500.0,0.00041643,18]
[342890062,1732194659057,-500.0,0.00041643,18]
[342890063,1732194659066,-855.84,0.00041643,18]
[342890064,1732194659076,-500.0,0.00041643,18]
[342890065,1732194659085,-4898.31,0.00041643,18]
[342890066,1732194659095,-500.0,0.00041643,18]
[342890067,1732194659104,-854.25,0.00041643,18]
[342890068,1732194659114,-500.0,0.00041643,18]
[342890069,1732194659123,-1315.84,0.00041643,18]
[342890070,1732194659134,-804.45,0.00041643,18]
[342890071,1732194659143,-956.47,0.00041643,18]
[342890072,1732194659156,-1732.71,0.00041643,18]
[342890073,1732194659165,-1103.91,0.00041643,18]
[342890074,1732194659175,-1237.38,0.00041643,18]
[342890075,1732194659185,-1087.6,0.00041643,18]
[342890076,1732194659195,-500.0,0.00041643,18]
[342890077,1732194659204,-500.0,0.00041643,18]
[342890078,1732194659215,-500.0,0.00041643,18]
[342890079,1732194659225,-500.0,0.00041643,18]
[342890080,1732194659235,-500.0,0.00041643,18]
[342890081,1732194659244,-997.02,0.00041643,18]
[342890082,1732194659253,-30258.65,0.00041643,18]
[342890083,1732194659263,-500.0,0.00041643,18]
[342890084,1732194659272,-500.0,0.00041643,18]
[342890085,1732194659281,-882.36,0.00041643,18]
[342890086,1732194659290,-500.0,0.00041643,18]
[342890087,1732194659300,-511.18230197,0.00041643,18]
[342890088,1732194659309,-2042.76,0.00041643,18]
[342890089,1732194659319,-6949.53,0.00041643,18]
[342890090,1732194659328,-2098.95,0.00041643,18]
[342890091,1732194659338,-151.0,0.00041643,14]
[342890092,1732194659348,-1092.83,0.00041643,18]
[342890093,1732194659357,-500.0,0.00041643,18]
[342890094,1732194659367,-741.2,0.00041643,18]
[342890095,1732194659378,-500.0,0.00041643,18]
[342890096,1732194659387,-767.93,0.00041643,18]
[342890097,1732194659397,-151.0,0.00041643,7]
[342890098,1732194659406,-500.0,0.00041643,18]
[342890099,1732194659416,-661.75,0.00041643,18]
[342890100,1732194659428,-1429.89,0.00041643,18]
[342890101,1732194659438,-1069.71,0.00041643,18]
[342890102,1732194659448,-39038.48,0.00041643,5]
[342890103,1732194659459,-1850.52,0.00041643,18]
[342890104,1732194659468,-151.0,0.00041643,14]
[342890105,1732194659478,-921.74,0.00041643,18]
[342890106,1732194659487,-500.0,0.00041643,18]
[342890107,1732194659498,-3979.51,0.00041643,18]
[342890108,1732194659507,-1541.01,0.00041643,18]
[342890109,1732194659516,-500.0,0.00041643,18]
[342890110,1732194659526,-611.82,0.00041643,18]
[342890111,1732194659535,-500.0,0.00041643,18]
[342890112,1732194659632,-151.0,0.00041643,14]
[342890113,1732194659642,-500.0,0.00041643,18]
[342890114,1732194659653,-500.0,0.00041643,18]
[342890115,1732194659663,-719.24,0.00041643,18]
[342890116,1732194659673,-500.0,0.00041643,18]
[342890117,1732194659683,-717.99,0.00041643,18]
[342890118,1732194659693,-1387.72,0.00041643,18]
[342890119,1732194659703,-649.06,0.00041643,18]
[342890120,1732194659713,-500.0,0.00041643,18]
[342890121,1732194659726,-2247.45,0.00041643,18]
[342890122,1732194659735,-2027.6,0.00041643,18]
[342890123,1732194659745,-500.0,0.00041643,18]
[342890124,1732194659754,-937.83,0.00041643,18]
[342890125,1732194659764,-2953.67,0.00041643,18]
[342890126,1732194659773,-500.0,0.00041643,18]
[342890127,1732194659783,-500.0,0.00041643,18]
[342890128,1732194659793,-541.93,0.00041643,18]
[342890129,1732194659802,-689.94,0.00041643,18]
[342890130,1732194659811,-500.0,0.00041643,18]
[342890131,1732194659821,-500.0,0.00041643,18]
[342890132,1732194659831,-548.65,0.00041643,18]
[342890133,1732194659840,-1513.8,0.00041643,18]
[342890134,1732194659850,-151.0,0.00041643,14]
[342890135,1732194659859,-500.0,0.00041643,18]
[342890136,1732194659868,-2147.97,0.00041643,18]
[342890137,1732194659879,-828.48,0.00041643,18]
[342890138,1732194659889,-500.0,0.00041643,18]
[342890139,1732194659898,-1031.29,0.00041643,18]
[342890140,1732194659907,-500.0,0.00041643,18]
[342890141,1732194659917,-500.0,0.00041643,18]
[342890142,1732194659926,-151.0,0.00041643,14]
[342890143,1732194659935,-711.15,0.00041643,18]
[342890144,1732194659944,-934.86,0.00041643,18]
[342890145,1732194659956,-829.16,0.00041643,18]
[342890146,1732194659965,-500.0,0.00041643,18]
[342890147,1732194659974,-500.0,0.00041643,18]
[342890148,1732194659983,-1014.7,0.00041643,18]
[342890149,1732194659992,-3813.71,0.00041643,18]
[342890150,1732194660001,-3113.46,0.00041643,18]
[342890151,1732194660010,-5231.7,0.00041643,18]
[342890152,1732194660018,-2460.96,0.00041643,18]
[342890153,1732194660027,-690.51,0.00041643,18]
[342890154,1732194660036,-668.72,0.00041643,18]
[342890155,1732194660054,-650.55,0.00041643,18]
[342890156,1732194660065,-1646.45,0.00041643,18]
[342890157,1732194660075,-500.0,0.00041643,18]
[342890158,1732194660085,-500.0,0.00041643,18]
[342890159,1732194660094,-500.0,0.00041643,18]
[342890160,1732194660103,-871.98,0.00041643,18]
[342890161,1732194660113,-1039.59,0.00041643,18]
[342890162,1732194660122,-987.99,0.00041643,18]
[342890163,1732194660134,-4052.73,0.00041643,18]
[342890164,1732194660143,-500.0,0.00041643,18]
[342890165,1732194660152,-860.23,0.00041643,18]
[342890166,1732194660162,-500.0,0.00041643,18]
[342890167,1732194660171,-500.0,0.00041643,18]
[342890168,1732194660181,-500.0,0.00041643,18]
[342890169,1732194660190,-1262.53,0.00041643,18]
[342890170,1732194660199,-500.0,0.00041643,18]
[342890171,1732194660208,-767.34,0.00041643,18]
[342890172,1732194660218,-954.48,0.00041643,18]
[342890173,1732194660227,-724.62,0.00041643,18]
[342890174,1732194660237,-500.0,0.00041643,18]
[342890175,1732194660247,-504.07,0.00041643,18]
[342890176,1732194660256,-500.0,0.00041643,18]
[342890177,1732194660266,-675.87,0.00041643,18]
[342890178,1732194660276,-2016.77,0.00041643,18]
[342890179,1732194660285,-500.0,0.00041643,18]
[342890180,1732194660295,-500.0,0.00041643,18]
[342890181,1732194660305,-596.76,0.00041643,18]
[342890182,1732194660315,-615.54,0.00041643,18]
[342890183,1732194660324,-685.07,0.00041643,18]
[342890184,1732194660333,-500.0,0.00041643,18]
[342890185,1732194660343,-500.0,0.00041643,18]
[342890186,1732194660353,-741.68,0.00041643,7]
[342890187,1732194660362,-1394.02,0.00041643,18]
[342890188,1732194660371,-750.77,0.00041643,18]
[342890189,1732194660384,-1815.86,0.00041643,18]
[342890190,1732194660394,-500.0,0.00041643,18]
[342890191,1732194660404,-500.0,0.00041643,18]
[342890192,1732194660417,-500.0,0.00041643,18]
[342890193,1732194660432,-500.0,0.00041643,18]
[342890194,1732194660441,-610.28,0.00041643,18]
[342890195,1732194660454,-500.0,0.00041643,18]
[342890196,1732194660464,-817.86,0.00041643,18]
[342890197,1732194660473,-1258.17,0.00041643,18]
[342890198,1732194660483,-1500.0,0.00041643,120]
[342890199,1732194660492,-21921.81,0.00041643,18]
[342890200,1732194660502,-672.11,0.00041643,18]
[342890201,1732194660511,-500.0,0.00041643,18]
[342890202,1732194660520,-2239.49,0.00041643,18]
[342890203,1732194660530,-500.0,0.00041643,18]
[342890204,1732194660539,-151.0,0.00041643,14]
[342890205,1732194660549,-993.04,0.00041643,18]
[342890206,1732194660559,-4988.71,0.00041643,18]
[342890207,1732194660568,-500.0,0.00041643,18]
[342890208,1732194660577,-597.59,0.00041643,18]
[342890209,1732194660586,-1765.4,0.00041643,18]
[342890210,1732194660596,-1619.06,0.00041643,18]
[342890211,1732194660605,-500.0,0.00041643,18]
[342890212,1732194660615,-862.66,0.00041643,18]
[342890213,1732194660625,-500.90560374,0.00041643,18]
[342890214,1732194660638,-966.97,0.00041643,18]
[342890215,1732194660647,-500.0,0.00041643,18]
[342890216,1732194660656,-1798.77,0.00041643,18]
[342890217,1732194660665,-500.0,0.00041643,18]
[342890218,1732194660674,-500.0,0.00041643,18]
[342890219,1732194660684,-870.92,0.00041643,18]
[342890220,1732194660693,-508.94,0.00041643,18]
[342890221,1732194660703,-500.0,0.00041643,18]
[342890222,1732194660712,-500.0,0.00041643,18]
[342890223,1732194660721,-1868.35,0.00041643,18]
[342890224,1732194660731,-281.06128321,0.00041643,18]
[342890225,1732194660740,-500.0,0.00041643,18]
[342890226,1732194660749,-3655.27,0.00041643,18]
[342890227,1732194660758,-500.0,0.00041643,18]
[342890228,1732194660767,-896.46,0.00041643,18]
[342890229,1732194660777,-674.22,0.00041643,18]
[342890230,1732194660786,-1094.32,0.00041643,18]
[342890231,1732194660795,-663.88,0.00041643,18]
[342890232,1732194660804,-500.0,0.00041643,18]
[342890233,1732194660813,-805.98,0.00041643,18]
[342890234,1732194660822,-500.0,0.00041643,18]
[342890235,1732194660831,-999.92,0.00041643,18]
[342890236,1732194660840,-500.0,0.00041643,18]
[342890237,1732194660849,-3678.44,0.00041643,18]
[342890238,1732194660859,-500.0,0.00041643,18]
[342890239,1732194660868,-1108.29,0.00041643,18]
[342890240,1732194660881,-2705.37,0.00041643,18]
[342890241,1732194660890,-5161.77,0.00041643,18]
[342890242,1732194660900,-500.0,0.00041643,18]
[342890243,1732194660909,-818.39,0.00041643,18]
[342890244,1732194660918,-2837.24,0.00041643,18]
[342890245,1732194660927,-500.0,0.00041643,18]
[342890246,1732194660937,-500.0,0.00041643,18]
[342890247,1732194660946,-1045.6,0.00041643,18]
[342890248,1732194660956,-1494.03,0.00041643,18]
[342890249,1732194660965,-560.57,0.00041643,18]
[342890250,1732194660974,-257.544638,0.00041643,14]
[342890251,1732194660983,-500.0,0.00041643,18]
[342890252,1732194660992,-257.544638,0.00041643,14]
[342890253,1732194661002,-3077.47,0.00041643,18]
[342890254,1732194661011,-514.11,0.00041643,18]
[342890255,1732194661020,-500.0,0.00041643,18]
[342890256,1732194661029,-500.0,0.00041643,18]
[342890257,1732194661037,-684.33,0.00041643,18]
[342890258,1732194661047,-758.58,0.00041643,18]
[342890259,1732194661056,-3197.41,0.00041643,18]
[342890260,1732194661065,-500.0,0.00041643,18]
[342890261,1732194661075,-5526.07,0.00041643,18]
[342890262,1732194661084,-783.58,0.00041643,18]
[342890263,1732194661093,-2714.24,0.00041643,18]
[342890264,1732194661102,-500.0,0.00041643,18]
[342890265,1732194661112,-500.0,0.00041643,18]
[342890266,1732194661121,-597.21,0.00041643,18]
[342890267,1732194661134,-500.0,0.00041643,18]
[342890268,1732194661144,-500.0,0.00041643,18]
[342890269,1732194661153,-500.0,0.00041643,18]
[342890270,1732194661163,-151.0,0.00041643,14]
[342890271,1732194661172,-796.77,0.00041643,18]
[342890272,1732194661181,-500.0,0.00041643,18]
[342890273,1732194661191,-723.07,0.00041643,7]
[342890274,1732194661200,-500.0,0.00041643,18]
[342890275,1732194661210,-2234.32,0.00041643,18]
[342890276,1732194661219,-151.0,0.00041643,14]
[342890277,1732194661228,-151.0,0.00041643,14]
[342890278,1732194661237,-708.81,0.00041643,18]
[342890279,1732194661247,-551.86,0.00041643,18]
[342890280,1732194661256,-6964.07,0.00041643,18]
[342890281,1732194661265,-4594.17,0.00041643,18]
[342890282,1732194661274,-563.0,0.00041643,18]
[342890283,1732194661283,-1633.38,0.00041643,18]
[342890284,1732194661293,-500.0,0.00041643,18]
[342890285,1732194661302,-670.31,0.00041643,18]
[342890286,1732194661311,-500.0,0.00041643,18]
[342890287,1732194661320,-500.0,0.00041643,18]
[342890288,1732194661330,-773.49,0.00041643,18]
[342890289,1732194661339,-2134.18,0.00041643,18]
[342890290,1732194661348,-500.0,0.00041643,18]
[342890291,1732194661357,-601.72,0.00041643,18]
[342890292,1732194661366,-836.38,0.00041643,18]
[342890293,1732194661375,-500.0,0.00041643,18]
[342890294,1732194661387,-582.33,0.00041643,18]
[342890295,1732194661397,-973.34,0.00041643,18]
[342890296,1732194661407,-707.99,0.00041643,18]
[342890297,1732194661420,-500.0,0.00041643,18]
[342890298,1732194661429,-2241.61,0.00041643,18]
[342890299,1732194661438,-500.0,0.00041643,18]
[342890300,1732194661448,-2158.7,0.00041643,18]
[342890301,1732194661458,-500.0,0.00041643,18]
[342890302,1732194661467,-551.51,0.00041643,18]
[342890303,1732194661477,-500.0,0.00041643,2]
[342890304,1732194661486,-868.62,0.00041643,18]
[342890305,1732194661496,-1043.98,0.00041643,18]
[342890306,1732194661506,-500.0,0.00041643,18]
[342890307,1732194661515,-3881.31,0.00041643,18]
[342890308,1732194661524,-538.99,0.00041643,18]
[342890309,1732194661533,-932.75,0.00041643,18]
[342890310,1732194661543,-543.02,0.00041643,18]